fUST/lending_fUST_20240227
["ID","MTS","AMOUNT","RATE_DAILY","PERIOD"]
[315390316,1709003432634,-691.53793725,0.00017599,2]
[315390407,1709003440590,-1032.32468215,0.00017598,2]
[315390408,1709003440599,-1007.30504429,0.00017599,2]
[315390409,1709003440611,-20.15251834,0.00017599,2]
[315390410,1709003440620,-260.71015292,0.000176,2]
[315390411,1709003440631,-19775.92156854,0.000176,2]
[315390412,1709003440654,-1260.4177973,0.000176,2]
[315390414,1709003440665,-69965.94004764,0.000176,2]
[315390415,1709003440674,-18575.651256,0.00018175,2]
[315390416,1709003440683,-499.11717943,0.000189,2]
[315390417,1709003440692,-1900.28050901,0.00019168,2]
[315390418,1709003440701,-284.88,0.00019168,3]
[315390419,1709003440710,-854.65,0.00019168,3]
[315390420,1709003440719,-159.80558045,0.00019176,2]
[315390421,1709003440729,-281.55953211,0.00019176,2]
[315390422,1709003440740,-155.42848835,0.00019176,2]
[315390423,1709003440750,-1213.57750513,0.00019177,2]
[315390424,1709003440759,-500.0,0.00019177,2]
[315390425,1709003440769,-646.47874491,0.00019178,2]
[315390426,1709003440778,-500.0,0.00019178,2]
[315390427,1709003440787,-500.0,0.00019178,2]
[315390428,1709003440797,-335.54916507,0.00019178,2]
[315390429,1709003440806,-500.0,0.00019178,2]
[315390430,1709003440815,-645.03411063,0.00019178,2]
[315390431,1709003440825,-233.09423677,0.00019178,2]
[315390432,1709003440834,-500.53697919,0.00019178,2]
[315390433,1709003440844,-500.26744116,0.00019178,2]
[315390434,1709003440853,-500.0,0.00019178,2]
[315390435,1709003440862,-500.0,0.00019178,2]
[315390436,1709003440871,-500.0,0.00019178,2]
[315390437,1709003440880,-500.0,0.00019178,2]
[315390438,1709003440889,-500.39586929,0.00019178,2]
[315390439,1709003440898,-501.36407866,0.00019178,2]
[315390440,1709003440907,-500.0,0.00019178,2]
[315390441,1709003440917,-500.0,0.00019178,2]
[315390442,1709003440926,-259.29438802,0.00019178,2]
[315390443,1709003440935,-582.50913426,0.00019178,2]
[315390444,1709003440945,-556.8935813,0.00019178,2]
[315390445,1709003440954,-571.62311212,0.00019178,2]
[315390446,1709003440963,-500.0,0.00019178,2]
[315390447,1709003440972,-500.0,0.00019178,2]
[315390448,1709003440981,-500.0,0.00019178,2]
[315390449,1709003440992,-502.33240697,0.00019178,2]
[315390450,1709003441001,-500.0,0.00019178,2]
[315390451,1709003441010,-500.0,0.00019178,2]
[315390452,1709003441019,-500.0,0.00019178,2]
[315390453,1709003441028,-1080.39,0.00019178,2]
[315390454,1709003441037,-500.0,0.00019178,2]
[315390455,1709003441046,-500.0,0.00019178,2]
[315390456,1709003441056,-500.0,0.00019178,2]
[315390457,1709003441065,-503.3806749,0.00019178,2]
[315390458,1709003441076,-500.0,0.00019178,2]
[315390459,1709003441085,-500.0,0.00019178,2]
[315390460,1709003441094,-570.5920491,0.00019178,2]
[315390461,1709003441105,-451.77238634,0.00019178,2]
[315390462,1709003441141,-500.0,0.00019178,2]
[315390463,1709003441151,-500.0,0.00019178,2]
[315390464,1709003441161,-500.39180037,0.00019178,2]
[315390465,1709003441170,-500.0,0.00019178,2]
[315390466,1709003441179,-607.49573442,0.00019178,2]
[315390467,1709003441188,-500.0,0.00019178,2]
[315390468,1709003441197,-500.0,0.00019178,2]
[315390469,1709003441206,-452.01515185,0.00019178,2]
[315390470,1709003441216,-500.0,0.00019178,2]
[315390471,1709003441225,-500.0,0.00019178,2]
[315390472,1709003441235,-500.0,0.00019178,2]
[315390473,1709003441244,-500.0,0.00019178,2]
[315390474,1709003441253,-501.75603767,0.00019178,2]
[315390475,1709003441263,-500.0,0.00019178,2]
[315390476,1709003441271,-2673.28,0.00019178,2]
[315390477,1709003441280,-500.35008704,0.00019178,2]
[315390478,1709003441290,-500.0,0.00019178,2]
[315390479,1709003441299,-1135.28,0.00019178,2]
[315390480,1709003441308,-1177.44,0.00019178,2]
[315390481,1709003441317,-502.54060646,0.00019178,2]
[315390482,1709003441327,-1736.96,0.00019178,2]
[315390483,1709003441338,-500.0,0.00019178,2]
[315390484,1709003441348,-309.25297592,0.00019178,2]
[315390485,1709003441357,-500.2963031,0.00019178,2]
[315390486,1709003441366,-582.41093118,0.00019178,2]
[315390487,1709003441376,-308.15816311,0.00019178,2]
[315390488,1709003441387,-500.0,0.00019178,2]
[315390489,1709003441396,-197.79317948,0.00019178,2]
[315390490,1709003441406,-500.0,0.00019178,2]
[315390491,1709003441415,-500.0,0.00019178,2]
[315390492,1709003441424,-500.0,0.00019178,2]
[315390493,1709003441436,-500.0,0.00019178,2]
[315390494,1709003441446,-504.52087056,0.00019178,2]
[315390495,1709003441457,-500.0,0.00019178,2]
[315390496,1709003441466,-601.9605283,0.00019178,2]
[315390497,1709003441576,-660.88,0.00019178,2]
[315390498,1709003441585,-502.16246755,0.00019178,2]
[315390499,1709003441596,-500.0,0.00019178,2]
[315390500,1709003441605,-504.59579865,0.00019178,2]
[315390501,1709003441614,-500.77842844,0.00019178,2]
[315390502,1709003441623,-616.29533652,0.00019178,2]
[315390503,1709003441634,-554.84363818,0.00019178,2]
[315390504,1709003441643,-421.73071136,0.00019178,2]
[315390505,1709003441653,-500.0,0.00019178,2]
[315390506,1709003441662,-501.46989619,0.00019178,2]
[315390507,1709003441672,-500.0,0.00019178,2]
[315390508,1709003441682,-500.0,0.00019178,2]
[315390509,1709003441691,-500.0,0.00019178,2]
[315390510,1709003441701,-500.0,0.00019178,2]
[315390511,1709003441710,-500.0,0.00019178,2]
[315390512,1709003441720,-501.17573476,0.00019178,2]
[315390513,1709003441729,-500.36013497,0.00019178,2]
[315390514,1709003441740,-500.91900387,0.00019178,2]
[315390515,1709003441749,-527.90953275,0.00019178,2]
[315390517,1709003441759,-500.0,0.00019178,2]
[315390519,1709003441768,-537.63645987,0.00019178,2]
[315390521,1709003441778,-500.0,0.00019178,2]
[315390523,1709003441787,-500.0,0.00019178,2]
[315390525,1709003441796,-500.0,0.00019178,2]
[315390526,1709003441805,-501.23926151,0.00019178,2]
[315390528,1709003441815,-500.0,0.00019178,2]
[315390530,1709003441824,-500.0,0.00019178,2]
[315390532,1709003441834,-500.0,0.00019178,2]
[315390534,1709003441843,-500.0,0.00019178,2]
[315390536,1709003441853,-500.0,0.00019178,2]
[315390538,1709003441864,-500.0,0.00019178,2]
[315390540,1709003441873,-500.0,0.00019178,2]
[315390542,1709003441883,-344.32099491,0.00019178,2]
[315390543,1709003441893,-500.0,0.00019178,2]
[315390544,1709003441902,-500.0,0.00019178,2]
[315390545,1709003441913,-500.0,0.00019178,2]
[315390546,1709003441922,-505.26600753,0.00019178,2]
[315390547,1709003441932,-500.43645647,0.00019178,2]
[315390548,1709003441942,-500.0,0.00019178,2]
[315390549,1709003441951,-500.0,0.00019178,2]
[315390550,1709003441963,-501.40034648,0.00019178,2]
[315390551,1709003441973,-500.0,0.00019178,2]
[315390552,1709003441983,-500.0,0.00019178,2]
[315390553,1709003441994,-501.03495227,0.00019178,2]
[315390554,1709003442003,-500.0,0.00019178,2]
[315390555,1709003442012,-500.0,0.00019178,2]
[315390556,1709003442021,-500.0,0.00019178,2]
[315390557,1709003442032,-500.0,0.00019178,2]
[315390558,1709003442043,-500.0,0.00019178,2]
[315390559,1709003442054,-500.0,0.00019178,2]
[315390560,1709003442064,-500.0,0.00019178,2]
[315390561,1709003442076,-1857.87,0.00019178,2]
[315390562,1709003442085,-500.0,0.00019178,2]
[315390563,1709003442095,-500.0,0.00019178,2]
[315390564,1709003442105,-1470.87,0.00019178,2]
[315390565,1709003442117,-500.0,0.00019178,2]
[315390566,1709003442127,-500.0,0.00019178,2]
[315390567,1709003442137,-500.0,0.00019178,2]
[315390568,1709003442148,-500.93234217,0.00019178,2]
[315390569,1709003442158,-500.0,0.00019178,2]
[315390570,1709003442168,-219.97376393,0.00019178,2]
[315390571,1709003442179,-1158.6,0.00019178,2]
[315390572,1709003442189,-500.0,0.00019178,2]
[315390573,1709003442200,-501.11795405,0.00019178,2]
[315390574,1709003442210,-407.46535087,0.00019178,2]
[315390575,1709003442221,-500.0,0.00019178,2]
[315390576,1709003442232,-500.0,0.00019178,2]
[315390577,1709003442245,-500.2308004,0.00019178,2]
[315390578,1709003442257,-500.99882083,0.00019178,2]
[315390579,1709003442266,-500.0,0.00019178,2]
[315390580,1709003442278,-500.0,0.00019178,2]
[315390581,1709003442290,-500.0,0.00019178,2]
[315390582,1709003442301,-500.0,0.00019178,2]
[315390583,1709003442312,-500.0,0.00019178,2]
[315390584,1709003442324,-500.90735407,0.00019178,2]
[315390585,1709003442337,-500.0,0.00019178,2]
[315390586,1709003442347,-500.0,0.00019178,2]
[315390587,1709003442358,-500.0,0.00019178,2]
[315390588,1709003442369,-501.19562815,0.00019178,2]
[315390589,1709003442379,-500.0,0.00019178,2]
[315390590,1709003442390,-502.27288732,0.00019178,2]
[315390591,1709003442401,-795.51,0.00019178,2]
[315390592,1709003442411,-151.0,0.00019178,2]
[315390593,1709003442421,-500.0,0.00019178,2]
[315390594,1709003442431,-500.0,0.00019178,2]
[315390595,1709003442442,-500.0,0.00019178,2]
[315390596,1709003442453,-500.0,0.00019178,2]
[315390597,1709003442464,-500.0,0.00019178,2]
[315390598,1709003442475,-500.0,0.00019178,2]
[315390599,1709003442487,-500.0,0.00019178,2]
[315390600,1709003442497,-500.0,0.00019178,2]
[315390601,1709003442508,-500.0,0.00019178,2]
[315390602,1709003442517,-500.0,0.00019178,2]
[315390603,1709003442527,-500.0,0.00019178,2]
[315390604,1709003442537,-504.08156979,0.00019178,2]
[315390605,1709003442548,-1325.55,0.00019178,2]
[315390606,1709003442559,-572.59,0.00019178,2]
[315390607,1709003442569,-500.0,0.00019178,2]
[315390608,1709003442579,-1179.46,0.00019178,2]
[315390609,1709003442588,-501.80447594,0.00019178,2]
[315390610,1709003442598,-500.0,0.00019178,2]
[315390611,1709003442608,-713.21,0.00019178,2]
[315390612,1709003442618,-587.8,0.00019178,2]
[315390613,1709003442627,-500.0,0.00019178,2]
[315390614,1709003442638,-500.0,0.00019178,2]
[315390615,1709003442648,-613.06489533,0.00019178,2]
[315390616,1709003442657,-1393.67,0.00019178,2]
[315390617,1709003442667,-500.0,0.00019178,2]
[315390618,1709003442677,-500.42279862,0.00019178,2]
[315390619,1709003442687,-500.0,0.00019178,2]
[315390620,1709003442696,-509.46707708,0.00019178,2]
[315390621,1709003442707,-500.0,0.00019178,2]
[315390622,1709003442718,-500.0,0.00019178,2]
[315390623,1709003442728,-500.0,0.00019178,2]
[315390624,1709003442743,-500.0,0.00019178,2]
[315390625,1709003442757,-500.0,0.00019178,2]
[315390626,1709003442771,-2287.46,0.00019178,2]
[315390627,1709003442783,-9825.67,0.00019178,2]
[315390628,1709003442797,-2408.78,0.00019178,2]
[315390629,1709003442808,-500.0,0.00019178,2]
[315390630,1709003442819,-543.79264245,0.00019178,2]
[315390631,1709003442830,-500.84805369,0.00019178,2]
[315390632,1709003442843,-747.0,0.00019178,2]
[315390633,1709003442855,-500.0,0.00019178,2]
[315390634,1709003442867,-443.10422866,0.00019178,2]
[315390635,1709003442881,-485.44592047,0.00019178,2]
[315390636,1709003442894,-500.0,0.00019178,2]
[315390637,1709003442905,-513.82649005,0.00019178,2]
[315390638,1709003442917,-500.0,0.00019178,2]
[315390639,1709003442930,-3179.82,0.00019178,2]
[315390640,1709003442941,-501.21782802,0.00019178,2]
[315390641,1709003442950,-1786.67,0.00019178,2]
[315390642,1709003442960,-500.0,0.00019178,2]
[315390645,1709003442973,-500.0,0.00019178,2]
[315390647,1709003442983,-500.0,0.00019178,2]
[315390649,1709003442997,-500.8056287,0.00019178,2]
[315390651,1709003443009,-1000.0,0.00019178,2]
[315390653,1709003443019,-16568.1,0.00019178,2]
[315390654,1709003443032,-500.0,0.00019178,2]
[315390657,1709003443043,-500.0,0.00019178,2]
[315390659,1709003443055,-500.0,0.00019178,2]
[315390661,1709003443070,-500.0,0.00019178,2]
[315390663,1709003443079,-500.0,0.00019178,2]
[315390665,1709003443089,-500.0,0.00019178,2]
[315390666,1709003443099,-269.28352699,0.00019178,2]
[315390668,1709003443114,-1000.0,0.00019178,2]
[315390669,1709003443125,-500.0,0.00019178,2]
[315390670,1709003443137,-500.56816977,0.00019178,2]
[315390671,1709003443150,-548.5808715,0.00019178,2]
[315390672,1709003443160,-2141.38,0.00019178,2]
[315390673,1709003443172,-500.0,0.00019178,2]
[315390674,1709003443182,-500.0,0.00019178,2]
[315390675,1709003443194,-500.0,0.00019178,2]
[315390676,1709003443207,-500.0,0.00019178,2]
[315390678,1709003443220,-500.0,0.00019178,2]
[315390679,1709003443233,-1945.26,0.00019178,2]
[315390680,1709003443247,-500.0,0.00019178,2]
[315390681,1709003443261,-500.91730771,0.00019178,2]
[315390684,1709003443276,-500.0,0.00019178,2]
[315390687,1709003443290,-500.0,0.00019178,2]
[315390690,1709003443303,-500.0,0.00019178,2]
[315390692,1709003443316,-500.87407908,0.00019178,2]
[315390693,1709003443328,-503.16525402,0.00019178,2]
[315390694,1709003443340,-532.72803877,0.00019178,2]
[315390695,1709003443352,-500.0,0.00019178,2]
[315390697,1709003443363,-500.76323612,0.00019178,2]
[315390698,1709003443376,-1111.23,0.00019178,2]
[315390700,1709003443389,-500.47930811,0.00019178,2]
[315390701,1709003443403,-500.0,0.00019178,2]
[315390702,1709003443415,-554.11,0.00019178,2]
[315390703,1709003443427,-500.0,0.00019178,2]
[315390704,1709003443439,-500.0,0.00019178,2]
[315390705,1709003443451,-604.63375048,0.00019178,2]
[315390706,1709003443463,-500.0,0.00019178,2]
[315390707,1709003443474,-500.0,0.00019178,2]
[315390708,1709003443485,-500.0,0.00019178,2]
[315390709,1709003443499,-500.0,0.00019178,2]
[315390710,1709003443511,-500.0,0.00019178,2]
[315390711,1709003443523,-500.55275279,0.00019178,2]
[315390712,1709003443534,-6582.67,0.00019178,2]
[315390713,1709003443544,-347.18042852,0.00019178,2]
[315390714,1709003443555,-1748.66,0.00019178,2]
[315390715,1709003443565,-16138.52,0.00019178,2]
[315390716,1709003443575,-468.65722539,0.00019178,2]
[315390717,1709003443586,-500.46472047,0.00019178,2]
[315390718,1709003443597,-500.0,0.00019178,2]
[315390719,1709003443608,-500.70475789,0.00019178,2]
[315390720,1709003443618,-500.31096572,0.00019178,2]
[315390721,1709003443629,-2997.64,0.00019178,2]
[315390722,1709003443640,-500.49030211,0.00019178,2]
[315390723,1709003443651,-500.0,0.00019178,2]
[315390724,1709003443661,-598.34,0.00019178,2]
[315390725,1709003443672,-598.34,0.00019178,2]
[315390727,1709003443682,-501.00756366,0.00019178,2]
[315390729,1709003443693,-480.04968014,0.00019178,2]
[315390731,1709003443703,-3441.68,0.00019178,2]
[315390732,1709003443714,-961.55,0.00019178,2]
[315390733,1709003443725,-500.0,0.00019178,2]
[315390734,1709003443736,-848.4,0.00019178,2]
[315390735,1709003443749,-500.0,0.00019178,2]
[315390736,1709003443760,-500.0,0.00019178,2]
[315390737,1709003443770,-945.83,0.00019178,2]
[315390738,1709003443781,-500.74835201,0.00019178,2]
[315390739,1709003443792,-500.80363811,0.00019178,2]
[315390740,1709003443804,-2559.97,0.00019178,2]
[315390741,1709003443815,-500.0,0.00019178,2]
[315390742,1709003443826,-158.618126,0.00019178,2]
[315390743,1709003443837,-167.120759,0.00019178,2]
[315390744,1709003443848,-166.666666,0.00019178,2]
[315390745,1709003443860,-169.574184,0.00019178,2]
[315390746,1709003443871,-1213.57750513,0.00019223,2]
[315390747,1709003443882,-500.0,0.00019232,2]
[315390748,1709003443893,-334.7806237,0.00019287,2]
[315390749,1709003443905,-798.09570307,0.00019352,2]
[315390750,1709003443916,-8814.26791973,0.00019439,2]
[315390751,1709003443928,-514.94015207,0.0001945,2]
[315390752,1709003443940,-598.34,0.0001945,2]
[315390753,1709003443950,-598.34,0.00019451,2]
[315390754,1709003443961,-598.34,0.00019451,2]
[315390755,1709003443973,-500.0,0.00019452,2]
[315390756,1709003443986,-501.9436783,0.00019452,2]
[315390757,1709003443998,-283.49549148,0.00019452,2]
[315390758,1709003444009,-501.98121851,0.00019452,2]
[315390759,1709003444020,-500.0,0.00019452,2]
[315390760,1709003444031,-500.0,0.00019452,2]
[315390761,1709003444042,-1080.39,0.00019452,2]
[315390762,1709003444053,-500.0,0.00019452,2]
[315390763,1709003444064,-500.0,0.00019452,2]
[315390764,1709003444076,-379.90449438,0.00019452,2]
[315390765,1709003444088,-379.01528578,0.00019452,2]
[315390766,1709003444218,-500.0,0.00019452,2]
[315390767,1709003444233,-503.95237384,0.00019452,2]
[315390768,1709003444245,-500.0,0.00019452,2]
[315390769,1709003444255,-500.0,0.00019452,2]
[315390770,1709003444264,-500.0,0.00019452,2]
[315390771,1709003444273,-2673.28,0.00019452,2]
[315390772,1709003444283,-172.33096958,0.00019452,2]
[315390773,1709003444292,-1135.28,0.00019452,2]
[315390774,1709003444302,-1177.44,0.00019452,2]
[315390775,1709003444311,-1736.96,0.00019452,2]
[315390776,1709003444320,-500.0,0.00019452,2]
[315390777,1709003444329,-522.98876347,0.00019452,2]
[315390778,1709003444338,-500.0,0.00019452,2]
[315390779,1709003444347,-660.88,0.00019452,2]
[315390780,1709003444356,-500.0,0.00019452,2]
[315390781,1709003444365,-500.0,0.00019452,2]
[315390782,1709003444374,-500.0,0.00019452,2]
[315390783,1709003444384,-500.0,0.00019452,2]
[315390784,1709003444393,-502.97392599,0.00019452,2]
[315390785,1709003444402,-500.0,0.00019452,2]
[315390786,1709003444411,-500.0,0.00019452,2]
[315390787,1709003444421,-500.0,0.00019452,2]
[315390788,1709003444430,-502.13809935,0.00019452,2]
[315390789,1709003444439,-500.0,0.00019452,2]
[315390790,1709003444448,-500.0,0.00019452,2]
[315390791,1709003444457,-500.0,0.00019452,2]
[315390792,1709003444466,-500.0,0.00019452,2]
[315390793,1709003444474,-500.0,0.00019452,2]
[315390794,1709003444484,-500.0,0.00019452,2]
[315390795,1709003444494,-500.0,0.00019452,2]
[315390796,1709003444503,-500.0,0.00019452,2]
[315390797,1709003444512,-494.85355284,0.00019452,2]
[315390798,1709003444521,-500.0,0.00019452,2]
[315390799,1709003444530,-500.0,0.00019452,2]
[315390800,1709003444539,-500.0,0.00019452,2]
[315390801,1709003444548,-500.0,0.00019452,2]
[315390802,1709003444557,-500.0,0.00019452,2]
[315390803,1709003444566,-230.19847541,0.00019452,2]
[315390804,1709003444575,-500.0,0.00019452,2]
[315390805,1709003444585,-1857.87,0.00019452,2]
[315390806,1709003444594,-500.0,0.00019452,2]
[315390807,1709003444603,-500.0,0.00019452,2]
[315390808,1709003444612,-1470.87,0.00019452,2]
[315390809,1709003444622,-510.03816746,0.00019452,2]
[315390810,1709003444631,-500.86552404,0.00019452,2]
[315390811,1709003444640,-1158.6,0.00019452,2]
[315390812,1709003444650,-173.08101295,0.00019452,2]
[315390813,1709003444659,-500.0,0.00019452,2]
[315390814,1709003444668,-503.15205362,0.00019452,2]
[315390815,1709003444677,-500.0,0.00019452,2]
[315390816,1709003444686,-501.9561912,0.00019452,2]
[315390817,1709003444697,-500.0,0.00019452,2]
[315390818,1709003444706,-500.0,0.00019452,2]
[315390819,1709003444715,-795.51,0.00019452,2]
[315390820,1709003444724,-207.61272348,0.00019452,2]
[315390821,1709003444733,-500.0,0.00019452,2]
[315390822,1709003444744,-500.0,0.00019452,2]
[315390823,1709003444753,-500.0,0.00019452,2]
[315390824,1709003444763,-501.79848938,0.00019452,2]
[315390825,1709003444772,-503.73065665,0.00019452,2]
[315390826,1709003444781,-500.0,0.00019452,2]
[315390827,1709003444790,-500.0,0.00019452,2]
[315390828,1709003444799,-500.0,0.00019452,2]
[315390829,1709003444809,-500.0,0.00019452,2]
[315390830,1709003444818,-1325.55,0.00019452,2]
[315390831,1709003444828,-572.59,0.00019452,2]
[315390832,1709003444837,-1179.46,0.00019452,2]
[315390833,1709003444847,-500.0,0.00019452,2]
[315390834,1709003444856,-713.21,0.00019452,2]
[315390835,1709003444866,-500.0,0.00019452,2]
[315390836,1709003444875,-1393.67,0.00019452,2]
[315390837,1709003444884,-501.29042956,0.00019452,2]
[315390838,1709003444893,-501.35547942,0.00019452,2]
[315390839,1709003444902,-581.55260075,0.00019452,2]
[315390840,1709003444912,-2287.46,0.00019452,2]
[315390841,1709003444922,-9825.67,0.00019452,2]
[315390842,1709003444931,-2408.78,0.00019452,2]
[315390843,1709003444941,-237.22654352,0.00019452,2]
[315390844,1709003444950,-747.0,0.00019452,2]
[315390845,1709003444959,-500.0,0.00019452,2]
[315390846,1709003444970,-500.0,0.00019452,2]
[315390847,1709003444979,-500.0,0.00019452,2]
[315390848,1709003444988,-3179.82,0.00019452,2]
[315390849,1709003445000,-1786.67,0.00019452,2]
[315390850,1709003445009,-1002.42085392,0.00019452,2]
[315390851,1709003445019,-16568.1,0.00019452,2]
[315390852,1709003445028,-226.05511992,0.00019452,2]
[315390853,1709003445037,-500.0,0.00019452,2]
[315390854,1709003445047,-500.0,0.00019452,2]
[315390855,1709003445056,-195.30844926,0.00019452,2]
[315390856,1709003445067,-500.0,0.00019452,2]
[315390857,1709003445076,-2141.38,0.00019452,2]
[315390858,1709003445086,-500.0,0.00019452,2]
[315390859,1709003445097,-500.77783376,0.00019452,2]
[315390860,1709003445106,-549.59387891,0.00019452,2]
[315390861,1709003445115,-500.0,0.00019452,2]
[315390862,1709003445124,-504.40324197,0.00019452,2]
[315390863,1709003445136,-1945.26,0.00019452,2]
[315390864,1709003445145,-646.16620991,0.00019452,2]
[315390865,1709003445154,-479.74109791,0.00019452,2]
[315390866,1709003445163,-500.0,0.00019452,2]
[315390867,1709003445173,-500.0,0.00019452,2]
[315390868,1709003445182,-384.82319129,0.00019452,2]
[315390869,1709003445191,-1111.23,0.00019452,2]
[315390870,1709003445200,-500.0,0.00019452,2]
[315390871,1709003445210,-554.11,0.00019452,2]
[315390872,1709003445219,-500.0,0.00019452,2]
[315390873,1709003445228,-500.0,0.00019452,2]
[315390874,1709003445238,-500.0,0.00019452,2]
[315390875,1709003445249,-231.23329056,0.00019452,2]
[315390876,1709003445258,-500.0,0.00019452,2]
[315390877,1709003445269,-500.0,0.00019452,2]
[315390878,1709003445278,-500.0,0.00019452,2]
[315390879,1709003445290,-6582.67,0.00019452,2]
[315390880,1709003445300,-1748.66,0.00019452,2]
[315390881,1709003445309,-16138.52,0.00019452,2]
[315390882,1709003445318,-500.0,0.00019452,2]
[315390883,1709003445327,-2997.64,0.00019452,2]
[315390884,1709003445337,-500.0,0.00019452,2]
[315390885,1709003445347,-3441.68,0.00019452,2]
[315390886,1709003445357,-961.55,0.00019452,2]
[315390887,1709003445365,-500.0,0.00019452,2]
[315390888,1709003445374,-848.4,0.00019452,2]
[315390889,1709003445384,-566.07734059,0.00019452,2]
[315390890,1709003445393,-500.0,0.00019452,2]
[315390891,1709003445402,-945.83,0.00019452,2]
[315390892,1709003445411,-2559.97,0.00019452,2]
[315390893,1709003445420,-798.09570304,0.00019626,2]
[315390894,1709003445429,-1596.90371543,0.00019626,2]
[315390895,1709003445438,-166.666666,0.00019627,2]
[315390896,1709003445447,-598.34,0.00019725,2]
[315390897,1709003445456,-598.34,0.00019725,2]
[315390898,1709003445465,-500.0,0.00019726,2]
[315390899,1709003445474,-500.0,0.00019726,2]
[315390900,1709003445484,-500.0,0.00019726,2]
[315390901,1709003445493,-1080.39,0.00019726,2]
[315390902,1709003445502,-500.0,0.00019726,2]
[315390903,1709003445511,-500.0,0.00019726,2]
[315390904,1709003445521,-500.0,0.00019726,2]
[315390905,1709003445530,-500.0,0.00019726,2]
[315390906,1709003445539,-602.67375131,0.00019726,2]
[315390907,1709003445548,-502.73428054,0.00019726,2]
[315390908,1709003445557,-2673.28,0.00019726,2]
[315390909,1709003445565,-1135.28,0.00019726,2]
[315390910,1709003445576,-1177.44,0.00019726,2]
[315390911,1709003445585,-1736.96,0.00019726,2]
[315390912,1709003445594,-500.0,0.00019726,2]
[315390913,1709003445603,-500.0,0.00019726,2]
[315390914,1709003445612,-660.88,0.00019726,2]
[315390915,1709003445622,-500.0,0.00019726,2]
[315390916,1709003445631,-500.0,0.00019726,2]
[315390917,1709003445640,-500.0,0.00019726,2]
[315390918,1709003445649,-500.0,0.00019726,2]
[315390919,1709003445659,-500.0,0.00019726,2]
[315390920,1709003445668,-500.0,0.00019726,2]
[315390921,1709003445678,-500.0,0.00019726,2]
[315390922,1709003445688,-500.0,0.00019726,2]
[315390923,1709003445697,-500.0,0.00019726,2]
[315390924,1709003445707,-500.0,0.00019726,2]
[315390925,1709003445716,-500.0,0.00019726,2]
[315390926,1709003445725,-500.0,0.00019726,2]
[315390927,1709003445735,-500.0,0.00019726,2]
[315390928,1709003445745,-500.0,0.00019726,2]
[315390929,1709003445754,-500.0,0.00019726,2]
[315390930,1709003445764,-500.0,0.00019726,2]
[315390931,1709003445773,-500.0,0.00019726,2]
[315390932,1709003445782,-500.0,0.00019726,2]
[315390933,1709003445791,-500.0,0.00019726,2]
[315390934,1709003445800,-500.0,0.00019726,2]
[315390935,1709003445809,-1857.87,0.00019726,2]
[315390936,1709003445819,-172.94345156,0.00019726,2]
[315390937,1709003445828,-212.44196053,0.00019726,2]
[315390938,1709003445837,-1470.87,0.00019726,2]
[315390939,1709003445847,-1158.6,0.00019726,2]
[315390940,1709003445856,-500.0,0.00019726,2]
[315390941,1709003445866,-795.51,0.00019726,2]
[315390942,1709003445875,-502.10886591,0.00019726,2]
[315390943,1709003445884,-500.0,0.00019726,2]
[315390944,1709003445893,-611.56698539,0.00019726,2]
[315390945,1709003445902,-500.0,0.00019726,2]